bitfinex-derivatives/quotes_BNBF0:USTF0_20260114
["timestamp","ask_amount","ask_price","bid_price","bid_amount"]
[1768360471374,0.18346786,949.46,947.06,1.05089227]
[1768360474481,0.18346786,949.46,947.07,1.05089227]
[1768360475476,0.18346786,949.46,947.08,1.05089227]
[1768360476486,0.18346786,949.46,947.09,1.05089227]
[1768360478483,0.18346786,949.46,947.1,1.05089227]
[1768360480484,0.18346786,949.46,947.11,1.05089227]
[1768360481282,0.18346786,949.46,947.12,1.05089227]
[1768360482383,0.18346786,949.46,947.13,1.05089227]
[1768360483389,0.18346786,949.46,947.14,1.05089227]
[1768360484289,0.18346786,949.46,947.16,1.05089227]
[1768360486393,0.18346786,949.46,947.18,1.05089227]
[1768360487189,0.18346786,949.46,947.2,1.05089227]
[1768360487593,0.18346786,949.46,947.12,1.05089227]
[1768360489290,0.18346786,949.46,947.14,1.05089227]
[1768360491690,0.18346786,949.46,947.21,1.05089227]
[1768360492191,0.18346786,949.46,947.22,1.05089227]
[1768360493193,0.18346786,949.46,947.21,1.05089227]
[1768360493397,0.18346786,949.46,947.22,1.05089227]
[1768360495100,0.18346786,949.46,947.23,1.05089227]
[1768360497505,0.18346786,949.46,947.28,1.05089227]
[1768360503203,0.18346786,949.46,947.3,1.05089227]
[1768360506108,0.18346786,949.46,947.29,1.05089227]
[1768360506305,43.0192845,949.37,947.29,1.05089227]
[1768360508909,43.0192845,949.37,947.3,1.05089227]
[1768360511106,43.0192845,949.37,947.29,1.05089227]
[1768360517514,43.0192845,949.37,947.31,1.05089227]
[1768360519717,43.0192845,949.37,947.25,1.05089227]
[1768360520120,43.0192845,949.37,947.19,1.05089227]
[1768360520415,43.0192845,949.37,947.02,1.57633841]
[1768360520416,43.0192845,949.37,947.05,1.05089227]
[1768360521217,43.0192845,949.37,947.04,1.05089227]
[1768360522217,43.0192845,949.37,947.03,1.05089227]
[1768360523318,43.0192845,949.37,947.02,1.05089227]
[1768360524920,43.0192845,949.37,947.01,1.05089227]
[1768360526217,43.0192845,949.37,947.0,1.05089227]
[1768360527321,43.0192845,949.37,946.99,1.05089227]
[1768360528217,43.0192845,949.37,946.98,1.05089227]
[1768360530222,43.0192845,949.37,946.97,1.05089227]
[1768360532122,43.0192845,949.37,946.96,1.05089227]
[1768360535126,43.0192845,949.37,946.95,1.05089227]
[1768360537630,43.0192845,949.37,946.85,1.05089227]
[1768360541231,43.0192845,949.37,946.84,1.05089227]
[1768360547529,43.0192845,949.37,946.57,42.92931395]
[1768360547530,43.0192845,949.37,946.89,1.05089227]
[1768360549331,43.0192845,949.37,946.57,42.92931395]
[1768360549332,43.0192845,949.37,946.9,1.05089227]
[1768360551237,43.0192845,949.37,946.91,1.05089227]
[1768360554138,43.0192845,949.37,946.94,1.05089227]
[1768360554638,43.0192845,949.37,947.13,1.05089227]
[1768360557737,43.0192845,949.37,947.12,1.05089227]
[1768360558139,43.0192845,949.37,947.13,1.05089227]
[1768360561241,43.0192845,949.37,947.14,1.05089227]
[1768360564136,43.0192845,949.37,947.15,1.05089227]
[1768360565339,43.0192845,949.37,946.98,1.57633841]
[1768360565539,43.0192845,949.37,946.57,42.92931395]
[1768360579148,0.18354382,948.68,946.57,42.92931395]
[1768360585658,0.18354382,948.68,947.11,1.05310021]
[1768360586154,0.18354382,948.68,947.12,1.05310021]
[1768360587955,0.18354382,948.68,947.14,1.05310021]
[1768360588158,0.18354382,948.68,947.15,1.05310021]
[1768360591158,0.18354382,948.68,947.16,1.05310021]
[1768360594166,0.18354382,948.68,947.17,1.05310021]
[1768360596267,0.18354382,948.68,947.18,1.05310021]
[1768360598172,0.18354382,948.68,947.19,1.05310021]
[1768360599272,0.18354382,948.68,947.2,1.05310021]
[1768360603174,0.18354382,948.68,947.21,1.05310021]
[1768360606172,0.18354382,948.68,947.22,1.05310021]
[1768360608171,0.18354382,948.68,947.23,1.05310021]
[1768360609177,0.18354382,948.68,947.25,1.05310021]
[1768360618884,0.18354382,948.68,947.17,1.05310021]
[1768360619186,0.18354382,948.68,947.16,1.05310021]
[1768360620687,0.18354382,948.68,947.11,1.05310021]
[1768360620986,0.18354382,948.68,947.08,1.05310021]
[1768360621187,0.18354382,948.68,947.06,1.05310021]
[1768360622289,0.18354382,948.68,947.05,1.05310021]
[1768360623189,0.18354382,948.68,947.04,1.05310021]
[1768360625290,0.18354382,948.68,947.03,1.05310021]
[1768360627192,0.18354382,948.68,947.02,1.05310021]
[1768360627992,0.18354382,948.68,946.85,1.57965031]
[1768360627993,0.18354382,948.68,947.01,1.05310021]
[1768360628196,0.18354382,948.68,947.0,1.05310021]
[1768360631198,0.18354382,948.68,946.99,1.05310021]
[1768360632996,43.10134429,948.88,946.99,1.05310021]
[1768360636098,43.10134429,948.88,947.0,1.05310021]
[1768360636299,43.10134429,948.88,947.01,1.05310021]
[1768360638000,43.10134429,948.88,947.02,1.05310021]
[1768360638200,43.10134429,948.88,947.05,1.05310021]
[1768360638700,0.18355592,948.43,947.05,1.05310021]
[1768360646305,0.18355592,948.43,947.06,1.05310021]
[1768360648210,0.18355592,948.43,947.07,1.05310021]
[1768360650610,0.18355592,948.43,947.15,1.05310021]
[1768360650807,0.18355592,948.43,947.2,1.05310021]
[1768360652311,0.18355592,948.43,947.19,1.05310021]
[1768360661117,0.18355592,948.43,947.16,1.05310021]
[1768360661317,0.18355592,948.43,947.03,1.05310021]
[1768360661618,0.18355592,948.43,947.02,1.05310021]
[1768360662318,0.18355592,948.43,947.01,1.05310021]
[1768360662619,0.18355592,948.43,946.99,1.05310021]
[1768360665818,0.18355592,948.43,947.08,1.05310021]
[1768360666021,0.18355592,948.43,947.09,1.05310021]
[1768360671227,0.18355592,948.43,947.1,1.05310021]
[1768360672926,0.18355592,948.43,947.11,1.05310021]
[1768360677126,0.18355592,948.43,947.12,1.05310021]
[1768360678128,0.18355592,948.43,947.13,1.05310021]
[1768360681129,0.18355592,948.43,947.14,1.05310021]
[1768360692440,0.18355592,948.43,947.15,1.05310021]
[1768360699242,0.18355592,948.43,947.16,1.05310021]
[1768360704248,0.18355592,948.43,947.17,1.05310021]
[1768360707250,0.18355592,948.43,947.18,1.05310021]
[1768360709152,0.18355592,948.43,947.19,1.05310021]
[1768360709649,0.18355592,948.43,947.2,1.05310021]
[1768360710152,0.18355592,948.43,947.21,1.05310021]
[1768360713554,0.18355592,948.43,947.22,1.05310021]
[1768360717853,0.18355592,948.43,947.2,1.05310021]
[1768360722363,0.18355592,948.43,947.18,1.05310021]
[1768360722561,0.18355592,948.43,947.09,1.05310021]
[1768360723161,0.18355592,948.43,947.08,1.05310021]
[1768360723359,0.18355592,948.43,946.99,1.05310021]
[1768360724160,0.18355592,948.43,946.97,1.05310021]
[1768360725461,0.18355592,948.43,946.96,1.05310021]
[1768360725963,0.18355592,948.43,946.95,1.05310021]
[1768360726164,0.18355592,948.43,946.94,1.05310021]
[1768360727164,0.18355592,948.43,946.93,1.05310021]
[1768360727868,0.18355592,948.43,946.94,1.05310021]
[1768360729273,0.18355592,948.43,946.93,1.05310021]
[1768360730166,0.18355592,948.43,946.76,1.57965031]
[1768360730167,0.18355592,948.43,946.92,1.05310021]
[1768360730972,0.18355592,948.43,946.9,1.05310021]
[1768360731269,0.18355592,948.43,946.89,1.05310021]
[1768360733270,0.18355592,948.43,946.88,1.05310021]
[1768360736170,0.18355592,948.43,946.87,1.05310021]
[1768360739375,0.18355592,948.43,946.86,1.05310021]
[1768360739873,0.18355592,948.43,946.87,1.05310021]
[1768360740172,0.18355592,948.43,946.86,1.05310021]
[1768360747076,0.18355592,948.43,946.94,1.05310021]
[1768360747673,0.18355592,948.43,947.02,1.05310021]
[1768360748874,0.18355592,948.43,947.03,1.05310021]
[1768360758197,0.18355592,948.43,947.04,1.05310021]
[1768360760297,0.18355592,948.43,947.09,1.05310021]
[1768360760498,0.18355592,948.43,947.11,1.05310021]
[1768360760698,0.18355592,948.43,947.13,1.05310021]
[1768360761194,0.18355592,948.43,947.14,1.05310021]
[1768360761396,0.18355592,948.43,947.13,1.05310021]
[1768360761798,0.18355592,948.43,947.19,1.05310021]
[1768360763103,0.18355592,948.43,947.16,1.05310021]
[1768360763303,0.18355592,948.43,947.0,1.05310021]
[1768360766303,0.18355592,948.43,947.01,1.05310021]
[1768360781218,0.18355592,948.43,947.02,1.05310021]
[1768360784325,0.18355592,948.43,947.03,1.05310021]
[1768360787426,0.18355592,948.43,947.04,1.05310021]
[1768360789327,0.18355592,948.43,947.05,1.05310021]
[1768360791326,0.18355592,948.43,947.06,1.05310021]
[1768360801843,0.18355592,948.43,946.97,1.05310021]
[1768360802042,0.18355592,948.43,946.96,1.05310021]
[1768360802339,0.18355592,948.43,946.95,1.05310021]
[1768360803338,0.18355592,948.43,946.94,1.05310021]
[1768360804142,0.18355592,948.43,946.96,1.05310021]
[1768360804442,0.18355592,948.43,946.95,1.05310021]
[1768360806448,0.18355592,948.43,946.96,1.05310021]
[1768360807446,0.18355592,948.43,946.97,1.05310021]
[1768360807946,0.18355592,948.43,946.96,1.05310021]
[1768360810347,0.18355592,948.43,946.95,1.05310021]
[1768360810549,0.18355592,948.43,946.96,1.05310021]
[1768360811352,0.18355592,948.43,946.95,1.05310021]
[1768360815554,0.18355592,948.43,946.94,1.05310021]
[1768360817954,0.18355592,948.43,946.95,1.05310021]
[1768360822163,0.18355592,948.43,946.94,1.05310021]
[1768360825966,0.18355592,948.43,946.93,1.05310021]
[1768360826365,0.18355592,948.43,946.94,1.05310021]
[1768360827370,0.18355592,948.43,946.95,1.05310021]
[1768360837378,0.18355592,948.43,946.96,1.05310021]
[1768360838777,42.74892622,948.86,946.96,1.05310021]
[1768360838977,0.18357868,948.07,946.96,1.05310021]
[1768360839277,42.74892622,948.86,946.96,1.05310021]
[1768360839478,0.18357868,947.91,946.98,1.05310021]
[1768360839979,42.74892622,948.86,946.98,1.05310021]
[1768360840184,0.18357771,947.91,946.98,1.05310021]
[1768360840379,42.74892622,948.86,946.98,1.05310021]
[1768360840677,0.18357771,947.91,946.98,1.05310021]
[1768360840882,42.7596895,948.86,946.98,1.05310021]
[1768360841279,0.18357771,947.91,946.98,1.05310021]
[1768360841478,42.74892622,948.86,946.98,1.05310021]
[1768360841779,0.18357771,947.91,946.98,1.05310021]
[1768360842082,42.75743592,948.86,946.98,1.05310021]
[1768360842281,0.18357771,947.91,946.98,1.05310021]
[1768360842482,42.74892622,948.86,946.99,1.05310021]
[1768360842682,42.74892622,948.86,946.98,1.05310021]
[1768360842882,0.18357771,947.91,946.98,1.05310021]
[1768360843178,42.74892622,948.86,946.98,1.05310021]
[1768360843378,0.18357771,947.91,946.99,1.05310021]
[1768360843576,42.74892622,948.86,946.99,1.05310021]
[1768360843776,0.18357722,947.91,946.99,1.05310021]
[1768360844178,42.74892622,948.86,946.99,1.05310021]
[1768360845082,0.18357722,948.4,946.99,1.05310021]
[1768360846178,0.18357722,948.4,947.18,1.05310021]
[1768360846382,0.18357722,948.4,947.17,1.05310021]
[1768360847282,0.18357722,948.4,947.16,1.05310021]
[1768360847582,0.18357722,948.4,947.17,1.05310021]
[1768360847982,0.18357722,948.4,947.16,1.05310021]
[1768360848380,0.18357722,948.4,947.15,1.05310021]
[1768360849285,0.18357722,948.4,947.14,1.05310021]
[1768360850284,0.18357722,948.4,947.13,1.05310021]
[1768360850681,0.18357722,948.4,947.15,1.05310021]
[1768360850982,0.18357722,948.4,947.18,1.05310021]
[1768360851283,0.18357722,948.4,947.17,1.05310021]
[1768360851484,0.18357722,948.4,947.18,1.05310021]
[1768360851685,0.18357722,948.4,947.29,1.05310021]
[1768360852580,0.18357722,948.4,947.31,1.05310021]
[1768360853379,0.18357722,948.4,947.29,1.05310021]
[1768360854184,0.18357722,948.4,947.32,1.05310021]
[1768360854386,0.18357722,948.4,947.31,1.05310021]
[1768360855287,0.18357722,948.4,947.29,1.05310021]
[1768360856387,0.18357722,948.4,947.28,1.05310021]
[1768360856986,0.18357722,948.4,947.29,1.05310021]
[1768360857486,0.18357722,948.4,947.27,1.05310021]
[1768360857887,0.18357722,948.4,947.28,1.05310021]
[1768360858284,0.18357722,948.4,947.27,1.05310021]
[1768360859391,0.18357722,948.4,947.26,1.05310021]
[1768360860488,0.18357722,948.4,947.25,1.05310021]
[1768360861291,0.18357722,948.4,947.24,1.05310021]
[1768360862290,0.18357722,948.4,947.23,1.05310021]
[1768360863392,0.18357722,948.4,947.22,1.05310021]
[1768360865291,0.18357722,948.4,947.21,1.05310021]
[1768360867096,0.18357722,948.4,947.2,1.05310021]
[1768360870100,0.18357722,948.4,947.19,1.05310021]
[1768360870300,0.18357722,948.4,947.2,1.05310021]
[1768360870699,0.18357722,948.4,947.19,1.05310021]
[1768360875313,0.18357722,948.4,947.2,1.05310021]
[1768360878317,0.18357722,948.4,947.21,1.05310021]
[1768360880413,0.18357722,948.4,947.22,1.05310021]
[1768360882115,0.18357722,948.4,947.23,1.05310021]
[1768360883518,0.18357722,948.4,947.24,1.05310021]
[1768360884315,0.18357722,948.4,947.25,1.05310021]
[1768360885220,0.18357722,948.4,947.26,1.05310021]
[1768360885426,0.18357722,948.4,947.27,1.05310021]
[1768360886425,0.18357722,948.4,947.28,1.05310021]
[1768360887424,0.18357722,948.4,947.29,1.05310021]
[1768360888123,0.18357722,948.4,947.3,1.05310021]
[1768360888321,0.18357722,948.4,947.31,1.05310021]
[1768360889322,0.18357722,948.4,947.33,1.05310021]
[1768360890326,0.18357722,948.4,947.36,1.05310021]
[1768360891325,0.18357722,948.4,947.37,1.05310021]
[1768360892327,0.18357722,948.4,947.38,1.05310021]
[1768360893432,0.18357722,948.4,947.39,1.05310021]
[1768360894031,0.18357722,948.4,947.4,1.05310021]
[1768360894329,0.18357722,948.4,947.41,1.05310021]
[1768360895032,0.18357722,948.4,947.4,1.05310021]
[1768360895327,0.18357722,948.4,947.42,1.05310021]
[1768360896331,0.18357722,948.4,947.44,1.05310021]
[1768360897232,0.18357722,948.4,947.45,1.05310021]
[1768360898333,0.18357722,948.4,947.46,1.05310021]
[1768360898531,0.18357722,948.4,947.45,1.05310021]
[1768360904238,0.18357722,948.4,947.44,1.05310021]
[1768360923450,0.18357722,948.4,947.18,1.05310021]
[1768360924254,0.18357722,948.4,947.15,1.05310021]
[1768360924452,0.18357722,948.4,946.95,1.05310021]
[1768360925253,0.18357722,948.4,946.9,1.05310021]
[1768360926150,0.18357722,948.4,946.87,1.05310021]
[1768360927353,0.18357722,948.4,946.83,1.05310021]
[1768360928457,0.18357722,948.4,946.81,1.05310021]
[1768360929158,0.18357722,948.4,946.8,1.05310021]
[1768360930054,0.18357722,948.4,946.79,1.05310021]
[1768360930258,0.18357722,948.4,946.78,1.05310021]
[1768360931260,0.18357722,948.4,946.77,1.05310021]
[1768360932260,0.18357722,948.4,946.75,1.05310021]
[1768360932456,0.18357722,948.4,946.72,1.05310021]
[1768360933456,0.18357722,948.4,946.71,1.05310021]
[1768360934257,0.18357722,948.4,946.7,1.05310021]
[1768360935061,0.18357722,948.4,946.69,1.05310021]
[1768360936263,0.18357722,948.4,946.68,1.05310021]
[1768360937161,0.18357722,948.4,946.67,1.05310021]
[1768360938158,0.18357722,948.4,946.62,43.08291229]
[1768360961271,0.18357722,948.4,946.68,1.05310021]
[1768360962368,0.18357722,948.4,946.69,1.05310021]
[1768360962672,0.18357722,948.4,946.72,1.05310021]
[1768360962870,0.18357722,948.4,946.85,1.05310021]
[1768360963270,0.18357722,948.4,946.87,1.05310021]
[1768360964274,0.18357722,948.4,946.88,1.05310021]
[1768360965573,0.18357722,948.4,946.89,1.05310021]
[1768360965773,0.18357722,948.4,946.71,1.57965031]
[1768360965774,0.18357722,948.4,946.88,1.05310021]
[1768360966169,0.18357722,948.4,946.89,1.05310021]
[1768360966470,0.18357722,948.4,946.91,1.05310021]
[1768360967273,0.18357722,948.4,946.93,1.05310021]
[1768360968170,0.18357722,948.4,946.95,1.05310021]
[1768360969177,0.18357722,948.4,946.96,1.05310021]
[1768360971178,0.18357722,948.4,946.95,1.05310021]
[1768360974176,0.18357722,948.4,946.94,1.05310021]
[1768360975078,0.18357722,948.4,946.95,1.05310021]
[1768360975279,0.18357722,948.4,946.94,1.05310021]
[1768360979194,0.18357722,948.4,946.92,1.05310021]
[1768360980794,0.18357722,948.4,946.91,1.05310021]
[1768360984396,0.18357722,948.4,946.92,1.05310021]
[1768360986603,0.18357722,948.4,946.94,1.05310021]
[1768360987502,0.18357722,948.4,947.05,1.05310021]
[1768360987798,0.18357722,948.4,947.13,1.05310021]
[1768360989298,0.18357722,948.4,947.12,1.05310021]
[1768360990998,0.18357722,948.4,947.15,1.05310021]
[1768360992801,0.18357722,948.4,947.22,1.05310021]
[1768360993605,0.18357722,948.4,947.21,1.05310021]
[1768360994202,0.18357722,948.4,947.23,1.05310021]
[1768360994407,0.18357722,948.4,947.22,1.05310021]
[1768360995308,0.18357722,948.4,947.21,1.05310021]
[1768360997210,0.18357722,948.4,947.22,1.05310021]
[1768360998208,0.18357722,948.4,947.23,1.05310021]
[1768360998411,0.18357722,948.4,947.22,1.05310021]
[1768360998613,0.18357722,948.4,947.25,1.05310021]
[1768360999108,0.18357722,948.4,947.26,1.05310021]
[1768360999310,0.18357722,948.4,947.27,1.05310021]
[1768361000208,0.18357722,948.4,947.28,1.05310021]
[1768361000409,0.18357722,948.4,947.27,1.05310021]
[1768361001009,0.00815427,949.81,947.34,1.05310021]
[1768361001313,0.00815427,949.81,946.59,0.18358303]
[1768361001314,0.18342821,948.53,947.35,1.05310021]
[1768361001513,35.72837029,950.42,947.35,1.05310021]
[1768361001713,35.72837029,950.42,947.36,1.05310021]
[1768361002010,0.0096728,949.48,947.36,1.05310021]
[1768361002212,0.0096728,949.48,947.35,1.05310021]
[1768361002410,0.18342386,949.66,947.35,1.05310021]
[1768361003209,0.18342386,949.66,947.36,1.05310021]
[1768361003411,0.18342386,949.66,947.35,1.05310021]
[1768361004110,0.18342386,949.66,947.36,1.05310021]
[1768361005115,0.18342386,949.66,947.37,1.05310021]
[1768361005713,0.18342386,949.66,947.39,1.05310021]
[1768361005917,0.18342386,949.66,947.45,1.05310021]
[1768361006313,0.18342386,949.66,947.44,1.05310021]
[1768361007214,0.18342386,949.66,947.45,1.05310021]
[1768361007513,0.18342386,949.66,947.43,1.05310021]
[1768361008118,0.18342386,949.66,946.59,0.18358303]
[1768361008119,0.18342386,949.66,947.4,1.05310021]
[1768361008320,0.18342386,949.66,947.39,1.05310021]
[1768361009314,0.18342386,949.66,947.38,1.05310021]
[1768361009820,0.18342386,949.66,947.39,1.05310021]
[1768361011423,0.18342386,949.66,947.38,1.05310021]
[1768361012321,0.18342386,949.66,947.37,1.05310021]
[1768361014424,0.18342386,949.66,947.38,1.05310021]
[1768361018025,0.18342386,949.66,947.35,1.05310021]
[1768361018226,0.18342386,949.66,947.36,1.05310021]
[1768361019524,0.18342386,949.66,947.3,1.05310021]
[1768361020125,0.18342386,949.66,947.31,1.05310021]
[1768361021026,0.18342386,949.66,947.3,1.05310021]
[1768361022231,0.18342386,949.66,947.31,1.05310021]
[1768361023234,0.18342386,949.66,947.32,1.05310021]
[1768361024335,0.18342386,949.66,947.15,1.57965031]
[1768361024336,0.18342386,949.66,947.33,1.05310021]
[1768361026533,0.18342386,949.66,947.34,1.05310021]
[1768361027334,0.18342386,949.66,947.35,1.05310021]
[1768361028039,0.18342386,949.66,947.39,1.05310021]
[1768361028234,0.18342386,949.66,947.4,1.05310021]
[1768361029342,0.18342386,949.66,947.42,1.05310021]
[1768361030342,0.18342386,949.66,947.44,1.05310021]
[1768361031339,0.18342386,949.66,947.46,1.05310021]
[1768361032242,0.18342386,949.66,947.48,1.05310021]
[1768361033342,0.18342386,949.66,947.49,1.05310021]
[1768361034343,0.18342386,949.66,947.5,1.05310021]
[1768361035349,0.18342386,949.66,947.51,1.05310021]
[1768361037247,0.18342386,949.66,947.52,1.05310021]
[1768361037447,0.18342386,949.66,947.53,1.05310021]
[1768361038048,0.18342386,949.66,947.51,1.05310021]
[1768361038345,0.18342386,949.66,947.52,1.05310021]
[1768361040448,0.18342386,949.66,947.53,1.05310021]
[1768361041448,0.18342386,949.66,947.54,1.05310021]
[1768361042447,0.18342386,949.66,947.55,1.05310021]
[1768361043447,0.18342386,949.66,947.56,1.05310021]
[1768361044354,0.18342386,949.66,947.57,1.05310021]
[1768361045353,0.18342386,949.66,947.58,1.05310021]
[1768361047254,0.18342386,949.66,947.59,1.05310021]
[1768361047954,0.18342386,949.66,947.58,1.05310021]
[1768361048151,0.18342386,949.66,947.56,1.05310021]
[1768361048354,0.18342386,949.66,947.57,1.05310021]
[1768361048653,0.18342386,949.66,947.31,1.05310021]
[1768361049354,0.18342386,949.66,947.29,1.05310021]
[1768361050251,0.18342386,949.66,947.12,1.57965031]
[1768361050252,0.18342386,949.66,947.28,1.05310021]
[1768361050652,0.18342386,949.66,947.25,1.05310021]
[1768361050951,0.18342386,949.66,947.23,1.05310021]
[1768361051555,0.18342386,949.66,947.22,1.05310021]
[1768361051953,0.18342386,949.66,947.17,1.05310021]
[1768361052354,0.18342386,949.66,947.15,1.05310021]
[1768361053360,0.18342386,949.66,947.13,1.05310021]
[1768361054258,0.18342386,949.66,947.12,1.05310021]
[1768361054760,0.18342386,949.66,947.08,1.05310021]
[1768361055156,0.18342386,949.66,947.09,1.05310021]
[1768361055356,0.18342386,949.66,947.07,1.05310021]
[1768361056258,0.18342386,949.66,947.06,1.05310021]
[1768361057362,0.18342386,949.66,947.05,1.05310021]
[1768361058362,0.18342386,949.66,947.04,1.05310021]
[1768361058564,0.18342386,949.66,947.09,1.05310021]
[1768361059364,0.18342386,949.66,947.08,1.05310021]
[1768361061260,0.18342386,949.66,947.07,1.05310021]
[1768361062365,0.18342386,949.66,947.12,1.05310021]
[1768361067570,0.18342386,949.66,947.1,1.05310021]
[1768361068366,0.18342386,949.66,947.08,1.05310021]
[1768361074366,0.18342386,949.66,947.09,1.05310021]
[1768361078370,0.18342386,949.66,947.1,1.05310021]
[1768361080273,0.18342386,949.66,947.11,1.05310021]
[1768361082371,0.18342386,949.66,947.12,1.05310021]
[1768361084275,0.18342386,949.66,947.13,1.05310021]
[1768361086478,0.18342386,949.66,947.14,1.05310021]
[1768361087379,0.18342386,949.66,947.15,1.05310021]
[1768361088374,0.18342386,949.66,947.08,1.05310021]
[1768361089278,0.18342386,949.66,947.1,1.05310021]
[1768361090377,0.18342386,949.66,947.11,1.05310021]
[1768361091383,0.18342386,949.66,947.12,1.05310021]
[1768361092377,0.18342386,949.66,947.15,1.05310021]
[1768361093380,0.18342386,949.66,947.18,1.05310021]
[1768361095284,0.18342386,949.66,947.19,1.05310021]
[1768361096180,0.18342386,949.66,947.2,1.05310021]
[1768361096780,0.18342386,949.66,947.21,1.05310021]
[1768361097285,0.18342386,949.66,947.22,1.05310021]
[1768361098281,0.18342386,949.66,947.21,1.05310021]
[1768361098482,0.18342386,949.66,947.28,1.05310021]
[1768361109794,0.18342386,949.66,947.3,1.05310021]
[1768361110295,0.18342386,949.66,947.32,1.05310021]
[1768361110590,0.18342386,949.66,947.35,1.05310021]
[1768361111196,0.18342386,949.66,947.34,1.05310021]
[1768361112597,0.18342386,949.66,947.37,1.05310021]
[1768361113194,0.18342386,949.66,947.36,1.05310021]
[1768361114298,0.18342386,949.66,947.35,1.05310021]
[1768361114598,0.18342386,949.66,947.36,1.05310021]
[1768361115498,0.18342386,949.66,947.37,1.05310021]
[1768361117295,0.18342386,949.66,947.36,1.05310021]
[1768361118500,0.18342386,949.66,947.35,1.05310021]
[1768361118800,31.51895587,949.57,947.35,1.05310021]
[1768361119600,31.51895587,949.57,947.36,1.05310021]
[1768361120296,31.51895587,949.57,947.35,1.05310021]
[1768361123306,31.51895587,949.57,947.34,1.05310021]
[1768361126105,31.51895587,949.57,947.45,1.05310021]
[1768361127305,31.51895587,949.57,947.44,1.05310021]
[1768361128107,31.51895587,949.57,947.45,1.05310021]
[1768361128306,31.51895587,949.57,947.44,1.05310021]
[1768361128504,31.51895587,949.57,947.45,1.05310021]
[1768361130209,31.51895587,949.57,947.44,1.05310021]
[1768361132111,31.51895587,949.57,947.43,1.05310021]
[1768361135114,31.51895587,949.57,947.42,1.05310021]
[1768361138517,31.51895587,949.57,947.37,1.05310021]
[1768361139218,31.51895587,949.57,947.36,1.05310021]
[1768361139519,31.51895587,949.57,947.37,1.05310021]
[1768361140118,31.51895587,949.57,947.36,1.05310021]
[1768361140418,31.51895587,949.57,947.37,1.05310021]
[1768361147624,31.51895587,949.57,947.38,1.05310021]
[1768361148124,31.51895587,949.57,947.39,1.05310021]
[1768361148625,31.51895587,949.57,947.47,1.05310021]
[1768361149222,31.51895587,949.57,947.48,1.05310021]
[1768361152328,31.51895587,949.57,947.49,1.05310021]
[1768361154130,31.51895587,949.57,947.5,1.05310021]
[1768361155132,31.51895587,949.57,947.51,1.05310021]
[1768361157236,31.51895587,949.57,947.52,1.05310021]
[1768361158636,31.51895587,949.57,947.49,1.05310021]
[1768361159232,31.51895587,949.57,947.5,1.05310021]
[1768361162234,31.51895587,949.57,947.51,1.05310021]
[1768361165341,31.51895587,949.57,947.52,1.05310021]
[1768361167143,31.51895587,949.57,947.53,1.05310021]
[1768361168340,31.51895587,949.57,947.54,1.05310021]
[1768361168543,31.51895587,949.57,947.55,1.05310021]
[1768361169341,31.51895587,949.57,947.56,1.05310021]
[1768361170145,31.51895587,949.57,947.58,1.05310021]
[1768361178447,31.51895587,949.57,947.52,1.05310021]
[1768361185156,31.51895587,949.57,947.53,1.05310021]
[1768361187159,31.51895587,949.57,947.52,1.05310021]
[1768361188565,31.51895587,949.57,947.59,1.05310021]
[1768361196070,31.51895587,949.57,947.57,1.05310021]
[1768361202582,0.18345093,949.08,947.57,1.05310021]
[1768361208487,0.18345093,949.08,947.59,1.05310021]
[1768361208688,0.18345093,949.08,947.6,1.05310021]
[1768361208988,0.18345093,949.08,947.62,1.05310021]
[1768361218689,0.18345093,949.08,947.64,1.05310021]
[1768361221497,0.18345093,949.08,947.63,1.05310021]
[1768361228512,0.18345093,949.08,947.61,1.05310021]
[1768361233114,0.18345093,949.08,947.62,1.05310021]
[1768361238514,0.18345093,949.08,947.64,1.05310021]
[1768361242116,0.18345093,949.08,947.61,1.05310021]
[1768361242321,0.18345093,949.08,947.58,1.05310021]
[1768361243220,0.18345093,949.08,947.57,1.05310021]
[1768361248322,0.18345093,949.08,947.56,1.05310021]
[1768361278549,0.18345093,949.08,947.52,1.05310021]
[1768361283252,0.18345093,949.08,947.53,1.05310021]
[1768361283753,0.18345093,949.08,947.5,1.05310021]
[1768361283952,0.18345093,949.08,947.46,1.05310021]
[1768361288556,0.18345093,949.08,947.5,1.05310021]
[1768361293458,0.18345093,949.08,947.49,1.05310021]
[1768361309568,0.18345093,949.08,947.52,1.05310021]
[1768361309770,0.18345093,949.08,947.78,1.05310021]
[1768361309971,0.18345093,949.08,947.77,1.05310021]
[1768361310171,0.18345093,949.08,947.75,1.05310021]
[1768361311268,0.18345093,949.08,947.73,1.05310021]
[1768361311868,0.18345093,949.08,947.72,1.05310021]
[1768361312266,0.18345093,949.08,947.71,1.05310021]
[1768361313172,0.18345093,949.08,947.7,1.05310021]
[1768361314272,0.18345093,949.08,947.69,1.05310021]
[1768361315372,0.18345093,949.08,947.68,1.05310021]
[1768361316171,0.18345093,949.08,947.67,1.05310021]
[1768361316774,0.18345093,949.08,947.64,1.05310021]
[1768361316977,0.18345093,949.08,947.52,1.05310021]
[1768361317178,0.18345093,949.08,947.51,1.05310021]
[1768361317378,0.18345093,949.08,947.5,1.05310021]
[1768361318575,0.18345093,949.08,947.49,1.05310021]
[1768361323279,0.18345093,949.08,947.15,25.28969221]
[1768361323280,0.18345093,949.08,947.48,1.05310021]
[1768361328593,0.18345093,949.08,947.5,1.05310021]